bitfinex/quotes_ETHUSD_20250821
["timestamp","ask_amount","ask_price","bid_price","bid_amount"]
[1755748166920,3.673,4315.3,4315.1,0.001]
[1755748168259,0.3105,4315.2,4315.1,0.001]
[1755748168857,3.673,4315.3,4315.1,0.001]
[1755748169059,0.3105,4315.2,4315.1,0.001]
[1755748169769,0.7739,4315.2,4315.1,0.001]
[1755748172242,3.7739,4315.2,4315.1,0.001]
[1755748172466,5.27412381,4315.2,4315.1,0.001]
[1755748172854,2.27412381,4315.2,4315.1,0.001]
[1755748173062,8.83012381,4315.2,4315.1,0.001]
[1755748174454,9.49012381,4315.2,4315.1,0.001]
[1755748175681,9.70736555,4315.2,4315.1,0.001]
[1755748176065,10.20792253,4315.2,4315.1,0.001]
[1755748177482,10.55533806,4315.0,4314.9,0.001]
[1755748177784,16.43902806,4315.0,4314.9,0.001]
[1755748177981,17.01842806,4315.0,4314.9,0.001]
[1755748178352,17.01942806,4315.0,4314.9,0.001]
[1755748178988,17.67942806,4315.0,4314.9,0.001]
[1755748179580,14.12342806,4315.0,4314.9,0.001]
[1755748179880,17.68042806,4315.0,4314.9,0.001]
[1755748180287,14.12342806,4315.0,4314.9,0.001]
[1755748180479,17.68042806,4315.0,4314.9,0.001]
[1755748180677,17.46318632,4315.0,4314.9,0.001]
[1755748180877,17.67998672,4315.0,4314.9,0.001]
[1755748181265,17.6799826,4315.0,4314.9,0.001]
[1755748181466,5.96734454,4315.0,4314.9,0.001]
[1755748181661,15.39573434,4315.0,4314.9,0.001]
[1755748181868,15.64473806,4315.0,4314.9,0.001]
[1755748183391,15.64373806,4315.0,4314.9,0.001]
[1755748183760,15.17793806,4315.0,4314.9,0.001]
[1755748184094,11.22933806,4315.0,4314.9,0.2879]
[1755748184258,15.35227187,4315.0,4314.9,0.001]
[1755748184465,15.64187187,4315.0,4314.9,0.001]
[1755748187597,15.35227187,4315.0,4314.9,0.2879]
[1755748187763,15.35227187,4315.0,4314.9,0.001]
[1755748187968,15.64087187,4315.0,4314.9,0.001]
[1755748188205,15.64087187,4315.0,4314.9,0.2879]
[1755748188206,4.12293381,4315.0,4314.9,0.2879]
[1755748188497,14.51593806,4315.0,4314.9,0.001]
[1755748188702,7.6206,4315.0,4314.9,0.001]
[1755748189199,14.88633806,4315.0,4314.9,0.001]
[1755748190674,14.88533806,4315.0,4314.9,0.001]
[1755748190902,16.37387187,4315.0,4314.9,0.001]
[1755748191208,16.66347187,4315.0,4314.9,0.001]
[1755748191682,13.10947187,4315.0,4314.9,0.001]
[1755748191879,17.12927187,4315.0,4314.9,0.001]
[1755748192084,13.57527187,4315.0,4314.9,0.001]
[1755748192310,17.12927187,4315.0,4314.9,0.001]
[1755748193396,13.57527187,4315.0,4314.9,0.001]
[1755748193586,17.12927187,4315.0,4314.9,0.001]
[1755748193800,17.12827187,4315.0,4314.9,0.001]
[1755748193978,16.66247187,4315.0,4314.9,0.001]
[1755748194302,17.12827187,4315.0,4314.9,0.001]
[1755748198203,17.34526039,4315.0,4314.9,0.001]
[1755748198400,17.84533383,4315.0,4314.9,0.001]
[1755748198989,3.66,4314.9,4314.8,0.021]
[1755748199189,7.04723096,4314.9,4314.8,0.021]
[1755748199719,7.26436643,4314.9,4314.6,0.001]
[1755748199898,11.33133806,4314.7,4314.6,0.001]
[1755748200217,14.47934873,4314.7,4314.6,0.001]
[1755748200403,3.66,4314.2,4314.0,0.001]
[1755748200714,4.71884983,4314.1,4314.0,0.001]
[1755748200893,5.80118624,4314.1,4314.0,0.001]
[1755748201090,7.83484983,4314.1,4314.0,0.001]
[1755748201307,8.21533806,4313.9,4312.6,0.4376]
[1755748201633,15.90409201,4313.9,4312.6,0.4376]
[1755748201780,16.36989201,4313.9,4312.6,0.4376]
[1755748201985,16.36979263,4313.9,4312.6,0.4376]
[1755748202186,16.58698996,4313.9,4312.5,0.4376]
[1755748202386,18.44119084,4313.9,4312.5,0.4376]
[1755748202730,15.00619084,4313.9,4311.8,0.02]
[1755748202887,18.56419084,4313.9,4312.9,0.4376]
[1755748203087,18.56419084,4313.9,4312.4,0.4376]
[1755748203288,3.66,4313.8,4312.4,0.4376]
[1755748203524,11.62093806,4312.9,4312.4,0.4376]
[1755748203814,16.34003187,4312.9,4311.8,0.02]
[1755748204016,16.34003187,4312.9,4312.3,0.4376]
[1755748204644,16.34003187,4312.9,4311.8,0.02]
[1755748204929,16.34003187,4312.9,4311.9,0.4376]
[1755748204930,16.80583187,4312.9,4311.9,0.4376]
[1755748206043,13.24883187,4312.9,4311.9,0.4376]
[1755748206227,16.80583187,4312.9,4311.9,0.4376]
[1755748206396,12.78303187,4312.9,4311.8,0.02]
[1755748206601,12.78303187,4312.9,4312.8,0.3069]
[1755748206602,16.04943187,4312.9,4312.8,0.3069]
[1755748207036,16.33903187,4312.9,4312.8,0.02]
[1755748207404,16.34003187,4312.9,4312.8,0.02]
[1755748208042,12.49343187,4312.9,4312.8,0.02]
[1755748208399,16.04943187,4312.9,4312.8,0.3069]
[1755748209436,16.33803187,4312.9,4312.8,0.02]
[1755748209636,16.80383187,4312.9,4312.8,0.02]
[1755748210315,16.33803187,4312.9,4312.8,0.02]
[1755748210543,16.04843187,4312.9,4312.8,0.3069]
[1755748211224,3.672,4312.9,4312.8,0.3069]
[1755748211422,7.4336,4312.9,4312.8,0.02]
[1755748211598,7.8701,4312.9,4312.8,0.02]
[1755748213213,3.66,4312.8,4311.9,0.001]
[1755748213542,3.66,4312.8,4310.8,0.02]
[1755748213543,3.66,4311.9,4310.8,0.02]
[1755748213706,10.55533806,4310.9,4310.8,0.02]
[1755748213904,14.12033806,4310.9,4310.8,0.3203]
[1755748214106,10.55533806,4310.9,4310.8,0.3203]
[1755748214307,15.25526641,4310.9,4310.8,0.3203]
[1755748215037,15.25526641,4310.9,4310.8,0.7748]
[1755748215240,14.78033806,4310.9,4310.8,0.7748]
[1755748215622,14.78033806,4310.9,4310.8,0.3203]
[1755748215805,11.21533806,4310.9,4310.8,0.3203]
[1755748216008,14.77933806,4310.9,4310.8,0.7748]
[1755748216408,14.77933806,4310.9,4310.8,0.02]
[1755748216643,12.69327187,4310.9,4310.8,0.02]
[1755748216857,16.56077187,4310.9,4310.8,0.02]
[1755748217038,16.55977187,4310.9,4310.8,0.02]
[1755748217356,16.55977187,4310.9,4308.1,7.55533806]
[1755748217357,3.0,4310.8,4308.2,0.02321155]
[1755748217505,7.55533806,4309.9,4308.2,0.02321155]
[1755748217709,14.79333806,4309.9,4309.8,0.3203]
[1755748218834,10.55533806,4309.9,4309.8,0.3203]
[1755748219008,7.55533806,4310.3,4309.8,0.3203]
[1755748219215,10.55533806,4310.0,4309.9,0.4545]
[1755748219414,14.13233806,4310.0,4309.9,0.3003]
[1755748219616,0.66,4309.9,4309.8,0.02]
[1755748220263,12.03457187,4310.0,4309.8,0.3203]
[1755748220451,10.55533806,4310.0,4309.8,0.7748]
[1755748220661,3.577,4309.9,4309.8,0.3203]
[1755748221239,3.577,4309.9,4309.8,0.02]
[1755748221443,3.8795,4309.9,4309.8,0.02]
[1755748221650,3.577,4309.9,4309.8,0.02]
[1755748221976,5.03422381,4309.9,4309.8,0.3203]
[1755748222174,3.578,4309.9,4309.8,0.7748]
[1755748222852,6.578,4309.9,4309.8,0.3203]
[1755748223052,7.238,4309.9,4309.8,0.3203]
[1755748223577,8.0964,4309.9,4309.8,0.02]
[1755748223765,9.66157381,4309.9,4309.8,0.02]
[1755748225569,6.08357381,4309.9,4309.8,0.02]
[1755748226076,9.66157381,4309.9,4309.8,0.02]
[1755748226463,6.08357381,4309.9,4309.8,0.02]
[1755748226760,9.66157381,4309.9,4309.8,0.02]
[1755748227348,6.08357381,4309.9,4309.8,0.02]
[1755748227545,9.66057381,4309.9,4309.8,0.02]
[1755748227951,6.08357381,4309.9,4309.8,0.02]
[1755748228168,8.91817381,4309.9,4309.8,0.02]
[1755748228387,9.22067381,4309.9,4309.8,0.02]
[1755748229156,9.66057381,4309.9,4309.8,0.02]
[1755748229789,0.4399,4310.9,4309.8,0.7748]
[1755748230089,7.55533806,4310.0,4309.8,0.3203]
[1755748230390,0.12123513,4311.2,4309.9,0.4545]
[1755748230691,7.55533806,4311.2,4311.1,0.3003]
[1755748230889,11.89987187,4311.2,4311.1,0.3003]
[1755748231062,14.89987187,4311.2,4311.1,0.3003]
[1755748231258,11.89987187,4311.2,4311.1,0.3003]
[1755748231594,12.20237187,4311.2,4309.8,0.3403]
[1755748231757,7.55533806,4309.9,4309.8,0.02]
[1755748231956,7.55533806,4309.9,4309.8,0.3203]
[1755748231957,11.14433806,4309.9,4309.8,0.3203]
[1755748232157,3.589,4309.9,4309.8,0.3213]
[1755748233093,20.82396154,4309.9,4309.8,0.3213]
[1755748233762,17.23496154,4309.9,4309.8,0.3213]
[1755748233963,20.82396154,4309.9,4309.8,0.3213]
[1755748234197,22.90635769,4309.9,4309.8,0.3213]
[1755748235729,5.67139615,4309.9,4309.8,0.3213]
[1755748237527,3.66,4310.6,4309.8,0.7758]
[1755748237693,0.66,4310.4,4309.8,0.7758]
[1755748237892,3.0,4310.2,4309.8,0.7758]
[1755748238100,3.586,4310.1,4309.9,0.4545]
[1755748238399,0.002,4310.9,4309.9,0.4545]
[1755748238622,5.30969615,4310.8,4309.9,0.4545]
[1755748238790,3.0,4310.4,4309.8,0.021]
[1755748239119,3.586,4310.3,4309.8,0.021]
[1755748239520,6.586,4310.3,4310.2,0.3003]
[1755748239725,8.94813963,4310.3,4310.2,0.3003]
[1755748239893,9.06413963,4310.3,4310.2,0.3003]
[1755748240237,9.06413963,4310.3,4309.8,0.021]
[1755748240238,3.0,4310.2,4309.8,0.021]
[1755748240437,0.116,4310.0,4309.8,0.021]
[1755748240741,0.116,4310.0,4309.9,0.3003]
[1755748240911,3.702,4310.0,4309.9,0.3003]
[1755748241110,3.702,4310.0,4309.9,0.7726]
[1755748243110,0.116,4310.0,4309.9,0.7726]
[1755748244214,0.116,4310.0,4309.9,0.79580239]
[1755748245508,0.116,4310.0,4309.9,0.7726]
[1755748247324,0.002,4310.9,4309.9,0.79580239]
[1755748247557,0.116,4310.3,4310.0,0.4723]
[1755748247714,0.116,4310.3,4310.2,0.2967]
[1755748247917,3.584,4310.9,4310.2,0.2967]
[1755748248118,0.116,4310.7,4310.3,0.49550024]
[1755748248320,0.116,4310.7,4310.6,0.2967]
[1755748248668,0.116,4310.7,4310.6,0.79219862]
[1755748248950,0.002,4310.9,4310.6,0.769]
[1755748249116,0.002,4310.9,4310.7,0.4723]
[1755748249313,0.002,4310.9,4310.8,0.2967]
[1755748249952,0.002,4310.9,4310.8,0.769]
[1755748253570,0.002,4310.9,4310.8,0.79219755]
[1755748253735,0.002,4310.9,4310.8,3.79219755]
[1755748254660,0.002,4310.9,4310.8,6.11195258]
[1755748254859,0.002,4310.9,4310.8,6.08875503]
[1755748255179,0.002,4310.9,4310.8,3.769]
[1755748255348,0.002,4310.9,4310.8,6.88795258]
[1755748255679,0.002,4310.9,4310.8,6.86475503]
[1755748257180,0.002,4310.9,4310.8,10.44275503]
[1755748260753,0.002,4311.2,4311.1,2.9795936]
[1755748261050,0.002,4311.2,4311.1,24.12275107]
[1755748261256,0.002,4311.2,4311.1,24.09955514]
[1755748264795,0.002,4311.2,4311.1,28.28955514]
[1755748265184,0.002,4311.2,4311.1,31.86155514]
[1755748265599,0.002,4311.2,4311.1,24.09955514]
[1755748265796,0.002,4311.2,4311.1,6.8645936]
[1755748265998,0.002,4311.2,4311.1,27.19825514]
[1755748266401,0.002,4311.2,4311.1,23.62725514]
[1755748266710,0.3089,4311.2,4311.1,3.687]
[1755748267783,0.3089,4311.2,4311.1,0.116]
[1755748268004,0.3089,4311.2,4311.1,3.687]
[1755748268307,0.7386,4311.2,4311.1,3.689]
[1755748268875,0.002,4311.2,4311.1,0.116]
[1755748269086,0.3089,4311.2,4311.1,3.688]
[1755748269523,0.7386,4311.2,4311.1,0.116]
[1755748269889,0.7386,4311.2,4311.1,3.689]
[1755748270089,0.7386,4311.2,4311.1,0.116]
[1755748270387,0.7386,4311.2,4311.1,3.689]
[1755748270784,0.7386,4311.2,4311.1,6.689]
[1755748272487,0.7386,4311.2,4311.1,0.116]
[1755748272692,0.7386,4311.2,4311.1,3.571]
[1755748274519,0.3089,4311.2,4311.1,3.571]
[1755748274892,0.002,4311.2,4311.1,3.571]
[1755748275312,0.765,4311.2,4311.1,3.687]
[1755748275507,0.3047,4311.2,4311.1,3.687]
[1755748277105,0.765,4311.2,4311.1,3.687]
[1755748277518,0.765,4311.2,4311.1,0.116]
[1755748277738,0.765,4311.2,4311.1,3.686]
[1755748277936,0.765,4311.2,4311.1,0.116]
[1755748278124,0.765,4311.2,4311.0,3.569]
[1755748278437,0.4603,4311.1,4311.0,3.569]
[1755748278592,0.763,4311.1,4310.7,3.569]
[1755748278795,0.116,4311.0,4310.7,3.569]
[1755748278996,0.3027,4310.8,4310.7,3.569]
[1755748279230,0.763,4310.8,4310.7,3.569]
[1755748281113,0.763,4310.8,4310.6,3.57]
[1755748281624,0.3027,4310.8,4310.6,3.57]
[1755748282197,0.3027,4310.8,4310.6,3.571]
[1755748284120,0.4603,4310.7,4310.6,3.571]
[1755748284308,0.3027,4310.7,4310.6,3.571]
[1755748284511,0.116,4311.0,4310.6,3.571]
[1755748284714,0.116,4311.0,4310.7,0.02319808]
[1755748285012,0.116,4311.0,4310.6,3.571]
[1755748285013,0.3027,4310.8,4310.6,0.001]
[1755748285245,0.3027,4310.8,4310.7,3.569]
[1755748285429,0.763,4310.8,4310.7,3.569]
[1755748285620,0.002,4311.2,4310.7,3.8543]
[1755748285832,0.002,4311.2,4311.1,0.116]
[1755748286032,0.002,4311.2,4311.1,3.9753]
[1755748286413,0.002,4311.2,4311.1,3.99849593]
[1755748286740,0.002,4311.2,4311.1,3.9753]
[1755748287438,0.002,4311.2,4311.1,3.99849593]
[1755748288340,0.002,4311.2,4311.1,3.9753]
[1755748289740,0.3047,4311.2,4311.1,3.69]
[1755748289943,0.3047,4311.2,4311.1,0.116]
[1755748290142,0.765,4311.2,4311.1,3.573]
[1755748291939,0.002,4311.2,4311.1,3.8583]
[1755748292136,0.002,4311.2,4311.1,3.59619593]
[1755748292444,0.3047,4311.2,4311.1,3.573]
[1755748294326,0.765,4311.2,4311.1,3.573]
[1755748294527,0.765,4311.2,4310.6,0.001]
[1755748294746,0.4603,4311.1,4310.7,3.688]
[1755748295052,0.3027,4310.8,4310.7,6.688]
[1755748296320,0.4603,4311.0,4310.7,6.688]
[1755748296818,0.002,4311.2,4310.9,0.2853]
[1755748297164,0.002,4311.2,4311.1,0.116]
[1755748297361,0.002,4311.2,4311.1,0.4013]
[1755748298364,0.002,4311.2,4311.1,0.8488]
[1755748298571,0.002,4311.2,4311.1,0.87199593]
[1755748299456,0.002,4311.2,4311.1,0.42449593]
[1755748301354,0.002,4311.2,4311.1,6.86018953]
[1755748301548,0.002,4311.2,4311.1,6.8369936]
[1755748303060,0.002,4311.2,4311.1,6.9299596]
[1755748305626,0.002,4311.2,4311.1,11.1199596]
[1755748306955,0.002,4311.2,4311.1,31.46582114]
[1755748307256,0.002,4311.2,4311.1,10.6638596]
[1755748307454,0.002,4311.2,4311.1,14.2298596]
[1755748307654,0.002,4311.2,4311.1,14.6869596]
[1755748308540,0.002,4311.2,4311.1,31.46582114]
[1755748308739,0.002,4311.2,4311.1,27.89882114]
[1755748309329,0.002,4311.2,4311.1,31.46582114]
[1755748310983,0.3018,4311.2,4311.1,0.208966]
[1755748311278,0.7317,4311.2,4311.1,3.776966]
[1755748312257,0.7317,4311.2,4311.1,0.208966]
[1755748312440,0.7317,4311.2,4311.1,3.774966]
[1755748317565,0.002,4311.2,4311.1,3.774966]
[1755748317782,0.3018,4311.2,4311.1,3.774966]
[1755748318766,0.002,4311.2,4311.1,3.774966]
[1755748318932,0.002,4311.2,4311.1,6.79816193]
[1755748319134,0.3018,4311.2,4311.1,6.774966]
[1755748319465,0.7317,4311.2,4311.1,6.774966]
[1755748319980,0.7317,4311.2,4311.1,3.208966]
[1755748320184,0.7317,4311.2,4311.1,6.678]
[1755748320386,0.7317,4311.2,4311.1,6.562]
[1755748320667,0.7317,4311.2,4311.1,3.562]
[1755748321078,0.002,4311.2,4311.1,3.678]
[1755748321248,0.002,4311.2,4311.1,6.678]
[1755748322200,0.002,4311.2,4311.1,6.983]
[1755748322493,0.002,4311.2,4311.1,14.54877237]
[1755748323968,0.002,4311.2,4311.1,17.98446597]
[1755748324165,0.002,4311.2,4311.1,15.66487237]
[1755748324466,0.002,4311.2,4311.1,17.52836597]
[1755748324680,0.002,4311.2,4311.1,17.98446597]
[1755748325520,0.002,4311.7,4311.2,3.66]
[1755748325678,0.002,4312.1,4311.7,5.97927082]
[1755748325863,0.116,4313.5,4312.7,2.31873304]
[1755748326067,0.136,4313.8,4312.7,17.41250541]
[1755748326411,0.02,4313.8,4312.7,17.98460541]
[1755748326905,0.4299,4313.7,4312.7,17.98460541]
[1755748327408,0.7497,4312.8,4312.7,6.679]
[1755748328868,0.7497,4312.8,4312.7,6.563]
[1755748329292,0.7497,4312.8,4312.7,3.563]
[1755748330212,0.02,4312.8,4312.7,11.43377237]
[1755748330400,0.02,4312.8,4312.7,11.54977237]
[1755748331422,0.02,4312.8,4312.7,14.24477237]
[1755748331914,0.02,4312.8,4312.7,14.67467237]
[1755748332111,0.02,4312.8,4312.7,17.96280541]
[1755748332311,0.02,4312.8,4312.7,28.05723978]
[1755748332499,0.022,4312.8,4312.7,28.05723978]
[1755748334590,0.022,4312.8,4312.7,28.60413001]
[1755748335205,0.002,4313.7,4312.9,0.66]
[1755748335414,0.002,4313.7,4313.6,22.82285599]
[1755748335616,0.002,4313.7,4313.6,24.06760674]
[1755748335820,0.002,4313.7,4313.6,24.53260674]
[1755748335986,0.002,4313.7,4313.6,26.96685599]
[1755748336183,0.002,4313.7,4313.6,27.62685599]
[1755748336835,0.002,4313.7,4313.6,27.71977099]
[1755748338615,0.002,4313.7,4313.6,27.25477099]
[1755748339284,0.002,4313.7,4313.6,21.37352174]
[1755748339622,0.2894,4313.7,4313.6,24.62512174]
[1755748340408,0.7292,4313.7,4313.6,6.769915]
[1755748341426,0.7292,4313.7,4313.6,3.208915]
[1755748341609,0.7292,4313.7,4313.6,6.770915]
[1755748341998,0.7292,4313.7,4313.6,3.653915]
[1755748343522,17.92240674,4313.7,4311.8,0.02]
[1755748343721,17.19520674,4313.3,4311.8,0.02]
[1755748343921,17.19520674,4313.3,4311.9,4.269253]
[1755748344086,17.19520674,4313.3,4311.9,3.572]
[1755748344087,0.4398,4313.2,4311.9,3.572]
[1755748344293,0.2874,4312.0,4311.9,3.572]
[1755748344694,0.7272,4312.0,4311.9,3.572]
[1755748346024,0.7272,4312.0,4311.9,3.571]
[1755748346922,0.2874,4312.0,4311.9,3.571]
[1755748347097,0.2874,4312.0,4311.9,3.59419163]
[1755748347297,0.2874,4312.0,4311.9,3.571]
[1755748347925,3.02,4313.8,4311.9,7.5404]
[1755748348097,0.4398,4313.1,4312.3,3.66]
[1755748348288,0.4398,4313.1,4312.4,3.579]
[1755748348495,0.2874,4312.5,4312.4,3.579]
[1755748349193,0.4398,4312.9,4312.4,3.579]
[1755748349601,0.4398,4312.9,4312.3,3.66]
[1755748349602,0.2874,4312.5,4312.3,3.0]
[1755748349806,0.7272,4312.5,4312.4,3.578]
[1755748350196,0.4398,4313.2,4312.4,3.578]
[1755748350522,0.4398,4313.2,4312.5,0.0231884]
[1755748350720,0.4398,4313.7,4312.6,17.19520674]
[1755748350898,0.4398,4313.7,4312.7,3.579]
[1755748351950,0.2874,4312.8,4312.7,3.579]
[1755748352151,0.2874,4312.8,4312.7,4.0188]
[1755748352441,0.02,4313.8,4312.7,7.3282]
[1755748352641,0.02,4313.8,4313.1,17.19520674]
[1755748352808,0.02,4313.8,4313.2,3.58]
[1755748354330,0.02,4313.8,4313.5,0.116]
[1755748354629,0.02,4313.8,4313.6,3.581]
[1755748354928,0.7272,4313.7,4313.6,0.4398]
[1755748355095,0.8432,4313.7,4313.5,3.581]
[1755748355296,0.8432,4313.7,4312.9,0.116]
[1755748355297,0.4398,4313.6,4313.0,0.697128]
[1755748355605,0.116,4313.3,4313.1,3.581]
[1755748355821,0.2874,4313.0,4312.7,0.116]
[1755748356007,0.116,4312.8,4312.4,3.585]
[1755748356224,17.19520674,4313.7,4312.4,3.585]
[1755748356225,0.4034,4312.5,4312.4,3.585]
[1755748356407,0.8432,4312.5,4312.4,3.585]
[1755748356609,0.2874,4312.5,4312.4,3.585]
[1755748356808,0.116,4312.7,4312.4,3.585]
[1755748357202,0.2874,4312.5,4312.4,3.585]
[1755748357708,0.116,4312.7,4312.4,3.585]
[1755748357909,0.5558,4313.0,4312.4,3.701]
[1755748358317,0.2874,4312.5,4312.4,3.701]
[1755748358644,0.7272,4312.5,4312.4,3.701]
[1755748359333,0.7272,4312.5,4312.4,3.585]
[1755748359842,0.2874,4312.5,4312.4,3.585]
[1755748360243,0.116,4312.7,4312.4,3.8944]
[1755748360469,0.116,4313.0,4312.5,0.0231884]
[1755748361244,0.116,4313.4,4312.8,0.116]
[1755748361542,0.116,4313.4,4312.9,3.584]
[1755748363039,0.116,4313.4,4312.9,4.0755]
[1755748363539,0.02,4313.8,4313.3,0.116]
[1755748363743,0.4915,4313.8,4313.4,3.583]
[1755748364246,0.02,4313.8,4313.4,4.0745]
[1755748365537,0.002,4313.7,4313.4,3.583]
[1755748366734,0.292,4313.5,4313.3,0.116]
[1755748367045,0.292,4313.5,4313.4,3.581]
[1755748367245,0.292,4313.5,4312.5,0.116]
[1755748367419,0.116,4313.5,4312.9,0.116]
[1755748370551,0.116,4313.5,4313.0,0.02318571]
[1755748370857,0.5875,4313.5,4313.1,3.579]
[1755748371037,0.5875,4313.5,4313.2,0.02318464]
[1755748371348,0.292,4313.3,4313.2,0.02318464]
[1755748371530,0.292,4313.3,4313.1,3.60218518]
[1755748372132,0.5875,4313.5,4313.1,3.60218518]
[1755748372336,0.116,4313.5,4313.1,3.60218518]
[1755748372970,0.5875,4313.5,4313.1,3.60218518]
[1755748373666,0.116,4313.5,4313.4,0.3103]
[1755748373966,0.002,4313.7,4313.4,0.33348356]
[1755748374248,0.002,4313.7,4313.5,3.576]
[1755748374436,0.292,4313.6,4313.5,3.576]
[1755748380247,0.002,4313.7,4313.5,3.8863]
[1755748381576,0.002,4313.7,4313.6,0.02318249]
[1755748381877,0.002,4313.7,4313.6,0.33348249]
[1755748382084,0.002,4313.7,4313.6,0.90018249]
[1755748382440,0.002,4313.7,4313.6,1.56018249]
[1755748382753,0.002,4313.7,4313.6,6.87843174]
[1755748382934,0.002,4313.7,4313.6,6.85524925]
[1755748383137,0.002,4313.7,4313.6,3.9973]
[1755748383348,0.002,4313.7,4313.6,3.687]
[1755748383577,0.294,4313.7,4313.6,3.687]
[1755748384074,0.002,4313.7,4313.6,3.687]
[1755748384654,0.002,4313.7,4313.6,6.687]
[1755748384855,0.002,4313.7,4313.6,6.9973]
[1755748387862,0.002,4313.7,4313.6,14.89253298]
[1755748388064,0.002,4313.7,4313.6,15.00853298]
[1755748388561,0.002,4313.7,4313.6,17.32678223]
[1755748388760,0.002,4313.7,4313.6,17.98678223]
[1755748392481,0.002,4313.7,4313.6,27.61051976]
[1755748393296,0.002,4314.0,4313.7,8.42619551]
[1755748393591,0.002,4314.0,4313.9,8.85668804]
[1755748393794,0.002,4314.0,4313.9,13.04668804]
[1755748394157,0.002,4314.0,4313.9,13.51998804]
[1755748394565,0.002,4314.0,4313.9,13.61287704]
[1755748396589,0.002,4314.0,4313.9,14.73987704]
[1755748397104,0.002,4314.0,4313.9,14.26657704]
[1755748397969,0.3097,4314.0,4313.9,3.208889]
[1755748398175,0.3097,4314.0,4313.9,6.784889]
[1755748398692,0.7394,4314.0,4313.9,6.784889]
[1755748398893,0.002,4314.0,4313.9,9.41757704]
[1755748399097,0.002,4314.0,4313.9,9.98468804]
[1755748399467,0.002,4314.0,4313.9,10.07759904]
[1755748402398,0.002,4314.0,4313.9,7.759511]
[1755748402568,0.002,4314.0,4313.9,10.07759904]
[1755748403897,0.002,4314.0,4313.9,10.55089904]
[1755748404084,0.3097,4314.0,4313.9,7.444911]
[1755748404286,0.3097,4314.0,4313.9,7.440911]
[1755748404704,0.7394,4314.0,4313.9,0.208911]
[1755748405009,0.7394,4314.0,4313.9,3.577]
[1755748405305,0.7394,4314.0,4313.9,6.577]
[1755748406509,0.7394,4314.0,4313.9,3.577]
[1755748408212,0.3097,4314.0,4313.9,3.577]
[1755748408504,0.7394,4314.0,4313.9,3.577]
[1755748413681,0.3097,4314.0,4313.9,3.577]
[1755748413872,0.3097,4314.0,4313.1,0.001]
[1755748413873,0.7394,4314.0,4313.1,0.001]
[1755748414073,1.90560115,4314.0,4313.2,3.574]
[1755748414300,1.47590115,4314.0,4313.2,3.574]
[1755748414518,0.4297,4313.9,4313.2,3.574]
[1755748414717,0.3077,4313.3,4313.2,3.574]
[1755748415020,0.7374,4313.3,4313.2,6.574]
[1755748416408,0.7374,4313.3,4313.2,3.574]
[1755748421822,0.7374,4313.3,4313.2,3.57]
[1755748423598,0.002,4314.0,4313.2,3.8803]
[1755748423807,0.116,4313.8,4313.2,3.8803]
[1755748424131,0.3115,4313.3,4313.2,3.57]
[1755748424624,0.5548,4313.8,4313.2,3.57]
[1755748425820,0.3115,4313.3,4313.1,0.001]
[1755748426024,0.3115,4313.3,4313.2,3.568]
[1755748426405,0.4388,4313.7,4313.2,3.568]
[1755748426604,0.4388,4313.6,4313.2,3.568]
[1755748426809,0.116,4313.8,4313.2,3.568]
[1755748427011,0.4388,4313.5,4313.2,3.568]
[1755748427213,0.3115,4313.3,4313.2,3.568]
[1755748427412,0.116,4313.8,4313.3,3.0]
[1755748427637,0.002,4314.0,4313.7,0.3103]
[1755748427802,0.002,4314.0,4313.8,3.70618141]
[1755748427998,0.002,4314.0,4313.8,3.683]
[1755748429020,0.7503,4313.9,4313.1,0.001]
[1755748429332,0.5548,4313.8,4313.3,3.0]
[1755748429629,0.3115,4313.4,4313.3,3.0]
[1755748432327,0.4388,4313.7,4313.3,3.0]
[1755748433102,0.118,4313.8,4313.4,0.02318356]
[1755748433308,0.118,4313.8,4313.5,3.565]
[1755748433709,0.3115,4313.6,4313.5,3.565]
[1755748436915,0.118,4313.8,4313.5,3.8753]
[1755748437226,0.002,4313.8,4313.6,0.46298249]
[1755748437427,0.002,4313.8,4313.7,0.3103]
[1755748437639,0.002,4313.8,4313.7,0.7501]
[1755748438152,0.002,4313.8,4313.7,14.28919875]
[1755748438353,0.002,4313.8,4313.7,4.4101]
[1755748438856,0.002,4313.8,4313.7,6.72829551]
[1755748439211,0.002,4313.8,4313.7,7.627218]
[1755748439710,0.002,4313.8,4313.7,8.067018]
[1755748440557,0.002,4313.8,4313.7,6.967218]
[1755748440928,0.002,4313.8,4313.7,6.966218]
[1755748441142,0.002,4313.8,4313.7,10.50021351]
[1755748442643,0.002,4313.8,4313.7,7.741218]
[1755748443731,0.3135,4313.8,4313.7,6.775918]
[1755748445763,0.7523,4313.8,4313.7,3.116]
[1755748445927,0.7523,4313.8,4313.7,6.682]
[1755748447227,0.7523,4313.8,4313.7,3.0]
[1755748447475,0.7523,4313.8,4313.1,0.001]
[1755748447476,8.42920324,4313.8,4313.1,0.001]